[Event "Early-Titled-Tuesday-Blitz-September-12-2023"]
[Site "Chess.com"]
[Date "2023.09.12"]
[Round "1"]
[White "arenal72"]
[Black "GMBenjaminBok"]
[Result "0-1"]
[WhiteElo "2521"]
[BlackElo "2985"]
[TimeControl "180+1"]
[EndTime "8:07:08 PDT"]
[Termination "GMBenjaminBok won by resignation"]

1. e4 {[%clk 0:02:56.7]} 1... c5 {[%clk 0:02:58.7]} 2. Be2 {[%clk 0:02:53]} 2...
g6 {[%clk 0:02:57.2]} 3. d3 {[%clk 0:02:52.4]} 3... Bg7 {[%clk 0:02:55]} 4. f4
{[%clk 0:02:52.1]} 4... Nc6 {[%clk 0:02:55.1]} 5. Nf3 {[%clk 0:02:51.8]} 5... d6
{[%clk 0:02:55.6]} 6. O-O {[%clk 0:02:50.8]} 6... Nf6 {[%clk 0:02:55.7]} 7. c3
{[%clk 0:02:50.7]} 7... O-O {[%clk 0:02:55.5]} 8. Kh1 {[%clk 0:02:50.6]} 8... b5
{[%clk 0:02:55.4]} 9. a3 {[%clk 0:02:50.1]} 9... a5 {[%clk 0:02:54.7]} 10. Be3
{[%clk 0:02:50.4]} 10... Ba6 {[%clk 0:02:52.7]} 11. Nbd2 {[%clk 0:02:48.2]}
11... b4 {[%clk 0:02:52.2]} 12. axb4 {[%clk 0:02:47.5]} 12... axb4 {[%clk
0:02:52.1]} 13. d4 {[%clk 0:02:47.9]} 13... Bxe2 {[%clk 0:02:42.1]} 14. Qxe2
{[%clk 0:02:46.2]} 14... bxc3 {[%clk 0:02:34.9]} 15. bxc3 {[%clk 0:02:44.8]}
15... cxd4 {[%clk 0:02:32.3]} 16. cxd4 {[%clk 0:02:43.3]} 16... Qd7 {[%clk
0:02:20.9]} 17. h3 {[%clk 0:02:26]} 17... Rfb8 {[%clk 0:02:10.5]} 18. Bf2 {[%clk
0:02:05.4]} 18... Nh5 {[%clk 0:02:06.2]} 19. Qe3 {[%clk 0:01:55.5]} 19... Rxa1
{[%clk 0:01:51.7]} 20. Rxa1 {[%clk 0:01:56.4]} 20... Bh6 {[%clk 0:01:52.2]} 21.
d5 {[%clk 0:01:39]} 21... Nd8 {[%clk 0:01:43.6]} 22. Qa7 {[%clk 0:01:35.6]}
22... Rb7 {[%clk 0:01:35.7]} 23. Qa4 {[%clk 0:01:30.5]} 23... Bxf4 {[%clk
0:01:21]} 24. Qxd7 {[%clk 0:01:25.3]} 24... Rxd7 {[%clk 0:01:21.9]} 25. Ra8
{[%clk 0:01:24.5]} 25... Kg7 {[%clk 0:01:17.5]} 26. Nc4 {[%clk 0:01:14.6]} 26...
Nb7 {[%clk 0:01:12.4]} 27. Rc8 {[%clk 0:01:11.9]} 27... Ng3+ {[%clk 0:01:08.4]}
28. Bxg3 {[%clk 0:01:07.6]} 28... Bxg3 {[%clk 0:01:09.3]} 29. Nb6 {[%clk
0:01:04.9]} 29... Rd8 {[%clk 0:01:09.1]} 30. Rc7 {[%clk 0:01:05]} 30... Nc5
{[%clk 0:01:08.1]} 31. e5 {[%clk 0:00:53.9]} 31... Rb8 {[%clk 0:01:03.5]} 32.
exd6 {[%clk 0:00:49.7]} 32... Rxb6 {[%clk 0:00:27.5]} 33. dxe7 {[%clk 0:00:47]}
33... Rb1+ {[%clk 0:00:26.1]} 34. Ng1 {[%clk 0:00:46.5]} 34... Nd3 {[%clk
0:00:23.1]} 35. Rc2 {[%clk 0:00:33.7]} 35... Re1 {[%clk 0:00:21.1]} 36. Rd2
{[%clk 0:00:20.1]} 36... Nf2+ {[%clk 0:00:20.3]} 37. Rxf2 {[%clk 0:00:19.7]}
37... Bxf2 {[%clk 0:00:21.2]} 38. d6 {[%clk 0:00:20.3]} 38... Bxg1 {[%clk
0:00:19.4]} 39. d7 {[%clk 0:00:20]} 39... Bc5+ {[%clk 0:00:18.9]} 40. Kh2 {[%clk
0:00:20.3]} 40... Bxe7 {[%clk 0:00:19.2]} 0-1

[Event "Early-Titled-Tuesday-Blitz-September-12-2023"]
[Site "Chess.com"]
[Date "2023.09.12"]
[Round "1"]
[White "kidagent"]
[Black "M_One1126"]
[Result "0-1"]
[WhiteElo "2220"]
[BlackElo "2570"]
[TimeControl "180+1"]
[EndTime "8:07:08 PDT"]
[Termination "M_One1126 won by resignation"]

1. e4 {[%clk 0:03:00.9]} 1... c5 {[%clk 0:02:58.6]} 2. Nf3 {[%clk 0:03:00.4]}
2... d6 {[%clk 0:02:57.8]} 3. d4 {[%clk 0:03:00.8]} 3... cxd4 {[%clk 0:02:58.7]}
4. Nxd4 {[%clk 0:03:01]} 4... Nf6 {[%clk 0:02:59.3]} 5. Nc3 {[%clk 0:03:01.6]}
5... a6 {[%clk 0:02:59.8]} 6. Bg5 {[%clk 0:03:01.7]} 6... Nbd7 {[%clk 0:02:59]}
7. Qe2 {[%clk 0:03:00.9]} 7... e6 {[%clk 0:02:57.1]} 8. O-O-O {[%clk 0:02:59.5]}
8... Be7 {[%clk 0:02:57]} 9. h4 {[%clk 0:02:54.6]} 9... Qc7 {[%clk 0:02:56.9]}
10. g4 {[%clk 0:02:49.7]} 10... b5 {[%clk 0:02:51.2]} 11. Bg2 {[%clk 0:02:48.9]}
11... Bb7 {[%clk 0:02:51.2]} 12. Kb1 {[%clk 0:02:43.7]} 12... Rc8 {[%clk
0:02:42.3]} 13. Bxf6 {[%clk 0:02:31.8]} 13... gxf6 {[%clk 0:02:36.9]} 14. Rhe1
{[%clk 0:02:25.2]} 14... b4 {[%clk 0:02:26.4]} 15. Nd5 {[%clk 0:02:17.4]} 15...
exd5 {[%clk 0:02:14]} 16. exd5 {[%clk 0:02:17.5]} 16... Ne5 {[%clk 0:02:14]} 17.
f4 {[%clk 0:02:15.7]} 17... Qc4 {[%clk 0:02:04]} 18. fxe5 {[%clk 0:02:05.1]}
18... Qxe2 {[%clk 0:02:02.7]} 19. Rxe2 {[%clk 0:02:05]} 19... fxe5 {[%clk
0:02:02.9]} 20. Nf5 {[%clk 0:02:00.4]} 20... Rc4 {[%clk 0:01:57.2]} 21. Re4
{[%clk 0:01:56.1]} 21... Rxe4 {[%clk 0:01:51.9]} 22. Bxe4 {[%clk 0:01:57]} 22...
Rg8 {[%clk 0:01:50.7]} 23. Rg1 {[%clk 0:01:50.3]} 23... Bc8 {[%clk 0:01:47.5]}
24. c4 {[%clk 0:01:44.6]} 24... Bxf5 {[%clk 0:01:29.7]} 25. Bxf5 {[%clk
0:01:43.6]} 25... Bxh4 {[%clk 0:01:29.7]} 26. Bxh7 {[%clk 0:01:42.9]} 26... Rh8
{[%clk 0:01:30]} 27. Be4 {[%clk 0:01:37.1]} 27... Ke7 {[%clk 0:01:23.7]} 28. Kc2
{[%clk 0:01:34.6]} 28... Kf6 {[%clk 0:01:20.2]} 29. Rf1+ {[%clk 0:01:29.1]}
29... Kg7 {[%clk 0:01:19.8]} 30. Kb3 {[%clk 0:01:27.2]} 30... Rb8 {[%clk
0:01:14.3]} 31. Rh1 {[%clk 0:01:20]} 31... Bg5 {[%clk 0:01:14.4]} 32. Rh7+
{[%clk 0:01:16.9]} 32... Kf6 {[%clk 0:01:14.7]} 33. Rh1 {[%clk 0:01:08.7]} 33...
Be3 {[%clk 0:01:12.4]} 34. Rf1+ {[%clk 0:01:05.2]} 34... Bf4 {[%clk 0:01:12.6]}
35. Bf5 {[%clk 0:01:05]} 35... Kg5 {[%clk 0:01:09.4]} 36. Ka4 {[%clk 0:00:52.5]}
36... Bd2 {[%clk 0:00:58.5]} 37. Rf2 {[%clk 0:00:50.7]} 37... Be3 {[%clk
0:00:56.8]} 38. Re2 {[%clk 0:00:50.5]} 38... Bd4 {[%clk 0:00:55.9]} 39. Ka5
{[%clk 0:00:47]} 39... Kf4 {[%clk 0:00:43.1]} 40. Kxa6 {[%clk 0:00:46.5]} 40...
Ra8+ {[%clk 0:00:42.4]} 41. Kb5 {[%clk 0:00:46.2]} 41... Rxa2 {[%clk 0:00:40.9]}
42. Kxb4 {[%clk 0:00:46.1]} 42... Kf3 {[%clk 0:00:32.1]} 43. Rc2 {[%clk
0:00:44.3]} 43... Rxb2+ {[%clk 0:00:31.7]} 44. Rxb2 {[%clk 0:00:44.4]} 44...
Bxb2 {[%clk 0:00:32.6]} 45. Kb5 {[%clk 0:00:45.1]} 45... Bd4 {[%clk 0:00:31.7]}
46. Kc6 {[%clk 0:00:45.2]} 46... Bc5 {[%clk 0:00:32]} 47. Kd7 {[%clk 0:00:44.8]}
47... e4 {[%clk 0:00:29.6]} 48. Ke7 {[%clk 0:00:44.7]} 48... e3 {[%clk
0:00:30.1]} 49. Bd3 {[%clk 0:00:44.5]} 49... Kxg4 {[%clk 0:00:29.6]} 50. Kxf7
{[%clk 0:00:43.6]} 50... Kf3 {[%clk 0:00:30.2]} 51. Ke6 {[%clk 0:00:41.3]} 51...
e2 {[%clk 0:00:31.1]} 52. Bxe2+ {[%clk 0:00:40.4]} 52... Kxe2 {[%clk 0:00:32]}
53. Kd7 {[%clk 0:00:37.6]} 53... Kd3 {[%clk 0:00:32.9]} 54. Kc6 {[%clk
0:00:38.2]} 54... Kxc4 {[%clk 0:00:33.8]} 0-1

[Event "Early-Titled-Tuesday-Blitz-September-12-2023"]
[Site "Chess.com"]
[Date "2023.09.12"]
[Round "1"]
[White "lamomiajunior"]
[Black "kacprekt"]
[Result "0-1"]
[WhiteElo "2720"]
[BlackElo "2433"]
[TimeControl "180+1"]
[EndTime "8:07:10 PDT"]
[Termination "kacprekt won by resignation"]

1. d4 {[%clk 0:03:00.9]} 1... Nf6 {[%clk 0:02:59.6]} 2. c4 {[%clk 0:03:00.4]}
2... d6 {[%clk 0:02:57.5]} 3. Nc3 {[%clk 0:02:58.9]} 3... g6 {[%clk 0:02:56.9]}
4. e4 {[%clk 0:02:58.9]} 4... Bg7 {[%clk 0:02:56.5]} 5. h3 {[%clk 0:02:59.6]}
5... Na6 {[%clk 0:02:52.3]} 6. Be3 {[%clk 0:02:55.7]} 6... c5 {[%clk 0:02:47.7]}
7. Nf3 {[%clk 0:02:53.7]} 7... O-O {[%clk 0:02:44.1]} 8. d5 {[%clk 0:02:43.4]}
8... Nc7 {[%clk 0:02:34.8]} 9. a4 {[%clk 0:02:35.8]} 9... Bd7 {[%clk 0:02:30.2]}
10. Bd3 {[%clk 0:02:32.1]} 10... e5 {[%clk 0:02:27.7]} 11. O-O {[%clk
0:02:29.8]} 11... Nh5 {[%clk 0:02:27.5]} 12. Bg5 {[%clk 0:02:10.4]} 12... f6
{[%clk 0:02:25.7]} 13. Bd2 {[%clk 0:02:05]} 13... f5 {[%clk 0:02:21.7]} 14. exf5
{[%clk 0:02:02.2]} 14... gxf5 {[%clk 0:02:17.2]} 15. Nxe5 {[%clk 0:01:56.7]}
15... dxe5 {[%clk 0:02:15.3]} 16. Qxh5 {[%clk 0:01:57.3]} 16... e4 {[%clk
0:02:15.6]} 17. Bc2 {[%clk 0:01:48.4]} 17... Ne8 {[%clk 0:02:15.2]} 18. Qe2
{[%clk 0:01:44]} 18... Qb6 {[%clk 0:02:06.4]} 19. b3 {[%clk 0:01:39.9]} 19...
Qg6 {[%clk 0:01:57.8]} 20. Rae1 {[%clk 0:01:39.6]} 20... Kh8 {[%clk 0:01:53.9]}
21. f3 {[%clk 0:01:36.2]} 21... Bd4+ {[%clk 0:01:50.4]} 22. Kh1 {[%clk
0:01:36.3]} 22... e3 {[%clk 0:01:50.7]} 23. Bxe3 {[%clk 0:01:32.5]} 23... Bxc3
{[%clk 0:01:50.8]} 24. Bxc5 {[%clk 0:01:32.1]} 24... Rg8 {[%clk 0:01:35.6]} 25.
Rd1 {[%clk 0:01:30.9]} 25... Nf6 {[%clk 0:01:27.2]} 26. Qf2 {[%clk 0:01:02.8]}
26... Nh5 {[%clk 0:00:59.3]} 27. Bd4+ {[%clk 0:00:58.7]} 27... Bxd4 {[%clk
0:00:59]} 28. Qxd4+ {[%clk 0:00:59.6]} 28... Rg7 {[%clk 0:00:59]} 29. Rf2 {[%clk
0:01:00.1]} 29... Rg8 {[%clk 0:00:52.4]} 30. c5 {[%clk 0:00:54.5]} 30... Qg3
{[%clk 0:00:40.8]} 31. f4 {[%clk 0:00:39.2]} 31... Re8 {[%clk 0:00:27.9]} 32. b4
{[%clk 0:00:22.2]} 32... Re3 {[%clk 0:00:27.3]} 33. b5 {[%clk 0:00:13.6]} 33...
Qxf2 {[%clk 0:00:24.6]} 34. Rg1 {[%clk 0:00:11.9]} 34... Rxh3+ {[%clk
0:00:18.6]} 35. gxh3 {[%clk 0:00:12.4]} 35... Qxd4 {[%clk 0:00:16.7]} 36. Rxg7
{[%clk 0:00:10.7]} 36... Kxg7 {[%clk 0:00:16.1]} 37. c6 {[%clk 0:00:11.6]} 37...
Qxd5+ {[%clk 0:00:15.6]} 38. Kg1 {[%clk 0:00:12]} 38... bxc6 {[%clk 0:00:15.9]}
0-1

[Event "Early-Titled-Tuesday-Blitz-September-12-2023"]
[Site "Chess.com"]
[Date "2023.09.12"]
[Round "1"]
[White "MartinMatthiesen"]
[Black "shimastream"]
[Result "0-1"]
[WhiteElo "2514"]
[BlackElo "2957"]
[TimeControl "180+1"]
[EndTime "8:07:14 PDT"]
[Termination "shimastream won by resignation"]

1. d4 {[%clk 0:02:50.1]} 1... Nf6 {[%clk 0:02:58.4]} 2. c4 {[%clk 0:02:49.8]}
2... g6 {[%clk 0:02:58.3]} 3. g3 {[%clk 0:02:49.1]} 3... Bg7 {[%clk 0:02:58]} 4.
Bg2 {[%clk 0:02:49.3]} 4... c5 {[%clk 0:02:55.6]} 5. d5 {[%clk 0:02:48.7]} 5...
O-O {[%clk 0:02:54.1]} 6. Nc3 {[%clk 0:02:48]} 6... e6 {[%clk 0:02:53.2]} 7. Nf3
{[%clk 0:02:47.1]} 7... exd5 {[%clk 0:02:53.1]} 8. cxd5 {[%clk 0:02:48]} 8... d6
{[%clk 0:02:52.8]} 9. O-O {[%clk 0:02:47.5]} 9... Re8 {[%clk 0:02:50.8]} 10. Bf4
{[%clk 0:02:45]} 10... h6 {[%clk 0:02:34]} 11. Re1 {[%clk 0:02:21.5]} 11... a6
{[%clk 0:02:13.1]} 12. a4 {[%clk 0:02:14.4]} 12... Bf5 {[%clk 0:02:08]} 13. Nh4
{[%clk 0:01:27]} 13... Bc8 {[%clk 0:01:51.1]} 14. Nf3 {[%clk 0:01:23.5]} 14...
Bg4 {[%clk 0:01:47.4]} 15. h3 {[%clk 0:01:18.8]} 15... Bxf3 {[%clk 0:01:46.3]}
16. Bxf3 {[%clk 0:01:19.7]} 16... Qc7 {[%clk 0:01:36.2]} 17. Qc2 {[%clk
0:01:08.7]} 17... Nbd7 {[%clk 0:01:34.8]} 18. Bg2 {[%clk 0:00:56.3]} 18... Ne5
{[%clk 0:01:32.7]} 19. a5 {[%clk 0:00:51.9]} 19... Re7 {[%clk 0:01:29]} 20. Bd2
{[%clk 0:00:50.2]} 20... Rae8 {[%clk 0:01:25]} 21. Na4 {[%clk 0:00:46.9]} 21...
Ned7 {[%clk 0:01:17.8]} 22. Bc3 {[%clk 0:00:40.9]} 22... Ne4 {[%clk 0:01:12.3]}
23. Bxg7 {[%clk 0:00:39.5]} 23... Kxg7 {[%clk 0:01:13.2]} 24. b3 {[%clk
0:00:36.9]} 24... Ndf6 {[%clk 0:01:04]} 25. Nb2 {[%clk 0:00:32.7]} 25... Nxd5
{[%clk 0:00:57.6]} 26. Nc4 {[%clk 0:00:23.1]} 26... Ndf6 {[%clk 0:00:55.6]} 27.
Nb6 {[%clk 0:00:18.4]} 27... d5 {[%clk 0:00:52.9]} 28. Rad1 {[%clk 0:00:16.3]}
28... d4 {[%clk 0:00:51.8]} 29. b4 {[%clk 0:00:16.5]} 29... Nc3 {[%clk
0:00:51.1]} 30. Rd2 {[%clk 0:00:16.8]} 30... cxb4 {[%clk 0:00:44.3]} 31. Rxd4
{[%clk 0:00:16.6]} 31... Qc5 {[%clk 0:00:39.3]} 32. Rd2 {[%clk 0:00:15.8]} 32...
Qxa5 {[%clk 0:00:37.9]} 33. Nc4 {[%clk 0:00:15.7]} 33... Qc5 {[%clk 0:00:38.1]}
34. Nb2 {[%clk 0:00:14.4]} 34... Nxe2+ {[%clk 0:00:25.7]} 35. Kh2 {[%clk
0:00:09.3]} 35... Qxf2 {[%clk 0:00:22.4]} 36. Qd3 {[%clk 0:00:06.4]} 36... Re3
{[%clk 0:00:21.3]} 37. Rdxe2 {[%clk 0:00:04.9]} 37... Rxe2 {[%clk 0:00:21.3]}
0-1

[Event "Early-Titled-Tuesday-Blitz-September-12-2023"]
[Site "Chess.com"]
[Date "2023.09.12"]
[Round "1"]
[White "CristianS27"]
[Black "Kacparov"]
[Result "0-1"]
[WhiteElo "2507"]
[BlackElo "2919"]
[TimeControl "180+1"]
[EndTime "8:07:14 PDT"]
[Termination "Kacparov won on time"]

1. e4 {[%clk 0:03:00.9]} 1... c5 {[%clk 0:02:59.5]} 2. Nf3 {[%clk 0:02:56.4]}
2... e6 {[%clk 0:02:59.8]} 3. d4 {[%clk 0:02:55.9]} 3... cxd4 {[%clk 0:03:00.7]}
4. Nxd4 {[%clk 0:02:56.8]} 4... a6 {[%clk 0:03:01]} 5. Be2 {[%clk 0:02:57]} 5...
Nf6 {[%clk 0:03:01]} 6. Nc3 {[%clk 0:02:56.8]} 6... Qc7 {[%clk 0:03:01.2]} 7.
O-O {[%clk 0:02:56.9]} 7... d6 {[%clk 0:03:01.7]} 8. a4 {[%clk 0:02:54.4]} 8...
Be7 {[%clk 0:02:59.4]} 9. f4 {[%clk 0:02:52.7]} 9... Nbd7 {[%clk 0:02:58.4]} 10.
a5 {[%clk 0:02:45]} 10... O-O {[%clk 0:02:58.1]} 11. Bf3 {[%clk 0:02:45.2]}
11... Rb8 {[%clk 0:02:56.6]} 12. g4 {[%clk 0:02:41.6]} 12... b5 {[%clk
0:02:53.6]} 13. axb6 {[%clk 0:02:38]} 13... Nxb6 {[%clk 0:02:53.5]} 14. g5
{[%clk 0:02:37.6]} 14... Nfd7 {[%clk 0:02:53.4]} 15. Bg2 {[%clk 0:02:30.1]}
15... Nc4 {[%clk 0:02:45.3]} 16. Rf3 {[%clk 0:02:16.9]} 16... Nxb2 {[%clk
0:02:42.2]} 17. Bxb2 {[%clk 0:01:51.9]} 17... Rxb2 {[%clk 0:02:41.8]} 18. Rh3
{[%clk 0:01:52.8]} 18... g6 {[%clk 0:02:33.2]} 19. f5 {[%clk 0:01:46.6]} 19...
Bxg5 {[%clk 0:02:16.8]} 20. fxe6 {[%clk 0:01:41.9]} 20... Nf6 {[%clk 0:02:11.9]}
21. exf7+ {[%clk 0:01:40.2]} 21... Rxf7 {[%clk 0:02:12.8]} 22. Rd3 {[%clk
0:01:27.4]} 22... Rb8 {[%clk 0:01:40.7]} 23. Nd5 {[%clk 0:01:11.3]} 23... Nxd5
{[%clk 0:01:39.9]} 24. exd5 {[%clk 0:01:12.2]} 24... Qb6 {[%clk 0:01:33.9]} 25.
Kh1 {[%clk 0:01:10]} 25... Bf6 {[%clk 0:01:33.8]} 26. Qd2 {[%clk 0:00:29.6]}
26... Bxd4 {[%clk 0:01:25.3]} 27. Rxd4 {[%clk 0:00:30.5]} 27... Qb1+ {[%clk
0:01:05.2]} 28. Rxb1 {[%clk 0:00:22.1]} 28... Rxb1+ {[%clk 0:01:06.1]} 29. Qd1
{[%clk 0:00:15.6]} 29... Rxd1+ {[%clk 0:01:04.4]} 30. Rxd1 {[%clk 0:00:16.5]}
30... Bf5 {[%clk 0:00:57]} 31. Ra1 {[%clk 0:00:13.6]} 31... Ra7 {[%clk
0:00:49.2]} 32. c3 {[%clk 0:00:10.6]} 32... a5 {[%clk 0:00:47.6]} 33. Bf3 {[%clk
0:00:09.1]} 33... Kf7 {[%clk 0:00:45.9]} 34. Kg2 {[%clk 0:00:08.5]} 34... a4
{[%clk 0:00:42.8]} 35. Ra3 {[%clk 0:00:07.8]} 35... Bc2 {[%clk 0:00:42.6]} 36.
Kf2 {[%clk 0:00:07.6]} 36... Kf6 {[%clk 0:00:41.2]} 37. Ke3 {[%clk 0:00:05.4]}
37... Ke5 {[%clk 0:00:38.6]} 38. c4 {[%clk 0:00:05.7]} 38... Bb3 {[%clk
0:00:37.4]} 39. Be2 {[%clk 0:00:04.4]} 39... Rf7 {[%clk 0:00:25.2]} 40. Ra1
{[%clk 0:00:03.7]} 40... Rf4 {[%clk 0:00:25]} 0-1

[Event "Early-Titled-Tuesday-Blitz-September-12-2023"]
[Site "Chess.com"]
[Date "2023.09.12"]
[Round "1"]
[White "Dom1nant1337"]
[Black "NotFischer"]
[Result "1-0"]
[WhiteElo "2596"]
[BlackElo "2286"]
[TimeControl "180+1"]
[EndTime "8:07:18 PDT"]
[Termination "Dom1nant1337 won by resignation"]

1. d4 {[%clk 0:02:58.1]} 1... Nf6 {[%clk 0:02:59.5]} 2. Nc3 {[%clk 0:02:57.6]}
2... d5 {[%clk 0:02:58.9]} 3. Bf4 {[%clk 0:02:57.4]} 3... a6 {[%clk 0:02:58.9]}
4. e3 {[%clk 0:02:57]} 4... e6 {[%clk 0:02:57.1]} 5. a3 {[%clk 0:02:56.9]} 5...
c5 {[%clk 0:02:56.9]} 6. Nf3 {[%clk 0:02:55.5]} 6... Nc6 {[%clk 0:02:56.5]} 7.
Bd3 {[%clk 0:02:41.6]} 7... cxd4 {[%clk 0:02:56.5]} 8. exd4 {[%clk 0:02:41.2]}
8... Bd6 {[%clk 0:02:56.8]} 9. Bxd6 {[%clk 0:02:28.8]} 9... Qxd6 {[%clk
0:02:57.7]} 10. O-O {[%clk 0:02:28.6]} 10... O-O {[%clk 0:02:57.5]} 11. Re1
{[%clk 0:02:28.8]} 11... Re8 {[%clk 0:02:48.5]} 12. Qd2 {[%clk 0:02:27.3]} 12...
b5 {[%clk 0:02:41.7]} 13. h3 {[%clk 0:02:22.7]} 13... h6 {[%clk 0:02:39.3]} 14.
Ne2 {[%clk 0:02:20.5]} 14... Bb7 {[%clk 0:02:32.8]} 15. c3 {[%clk 0:02:16.4]}
15... Rab8 {[%clk 0:02:31.6]} 16. Rac1 {[%clk 0:02:00.8]} 16... Na5 {[%clk
0:02:31.4]} 17. Rcd1 {[%clk 0:01:48.9]} 17... Nc4 {[%clk 0:02:26.3]} 18. Qc1
{[%clk 0:01:47.6]} 18... a5 {[%clk 0:02:24.2]} 19. Ng3 {[%clk 0:01:37.3]} 19...
Bc6 {[%clk 0:02:19]} 20. Ne5 {[%clk 0:01:36.7]} 20... Qc7 {[%clk 0:02:00.7]} 21.
Bb1 {[%clk 0:01:28.7]} 21... Nxe5 {[%clk 0:01:49.7]} 22. Rxe5 {[%clk 0:01:15.2]}
22... b4 {[%clk 0:01:39.7]} 23. Qc2 {[%clk 0:01:02.1]} 23... bxc3 {[%clk
0:01:26.5]} 24. bxc3 {[%clk 0:01:01.7]} 24... Qe7 {[%clk 0:01:25.3]} 25. Nh5
{[%clk 0:00:55.8]} 25... Rxb1 {[%clk 0:01:03.4]} 26. Rxb1 {[%clk 0:00:50.4]}
26... Nxh5 {[%clk 0:00:59.2]} 27. Rxh5 {[%clk 0:00:49.4]} 27... Qd7 {[%clk
0:00:53.7]} 28. Re5 {[%clk 0:00:47.4]} 28... Rc8 {[%clk 0:00:51.8]} 29. Qb2
{[%clk 0:00:33.9]} 29... Ba4 {[%clk 0:00:41.8]} 30. Re3 {[%clk 0:00:32.1]} 30...
Qd6 {[%clk 0:00:39.9]} 31. Qb7 {[%clk 0:00:28.7]} 31... Rf8 {[%clk 0:00:31.4]}
32. Qa7 {[%clk 0:00:21.3]} 32... Qxa3 {[%clk 0:00:25.7]} 33. Qxa5 {[%clk
0:00:20.2]} 33... Qa2 {[%clk 0:00:25.8]} 34. Rb7 {[%clk 0:00:13.2]} 34... Qc4
{[%clk 0:00:12.5]} 35. Rb4 {[%clk 0:00:12.3]} 1-0

[Event "Early-Titled-Tuesday-Blitz-September-12-2023"]
[Site "Chess.com"]
[Date "2023.09.12"]
[Round "1"]
[White "AniJak"]
[Black "Goryachkina"]
[Result "0-1"]
[WhiteElo "2376"]
[BlackElo "2673"]
[TimeControl "180+1"]
[EndTime "8:07:21 PDT"]
[Termination "Goryachkina won on time"]

1. e4 {[%clk 0:03:00.9]} 1... c6 {[%clk 0:02:58.7]} 2. d4 {[%clk 0:02:59.8]}
2... d5 {[%clk 0:02:58.8]} 3. e5 {[%clk 0:02:59.9]} 3... Bf5 {[%clk 0:02:58.4]}
4. Nf3 {[%clk 0:02:59.5]} 4... e6 {[%clk 0:02:58.3]} 5. Be2 {[%clk 0:02:59]}
5... Ne7 {[%clk 0:02:58]} 6. O-O {[%clk 0:02:58.1]} 6... c5 {[%clk 0:02:57.6]}
7. c4 {[%clk 0:02:53.6]} 7... Nbc6 {[%clk 0:02:55.6]} 8. Nc3 {[%clk 0:02:39.9]}
8... Nxd4 {[%clk 0:02:27.1]} 9. Nxd4 {[%clk 0:02:37]} 9... cxd4 {[%clk
0:02:27.2]} 10. Qxd4 {[%clk 0:02:33.7]} 10... Nc6 {[%clk 0:02:26.4]} 11. Qf4
{[%clk 0:02:28.5]} 11... dxc4 {[%clk 0:02:01.4]} 12. Bxc4 {[%clk 0:02:19.2]}
12... Be7 {[%clk 0:02:00.4]} 13. Bb5 {[%clk 0:02:02.1]} 13... Rc8 {[%clk
0:01:47.3]} 14. Be3 {[%clk 0:01:51]} 14... O-O {[%clk 0:01:37.9]} 15. Rfd1
{[%clk 0:01:42.2]} 15... Qc7 {[%clk 0:01:27.6]} 16. Bxc6 {[%clk 0:01:37.1]}
16... bxc6 {[%clk 0:01:23.3]} 17. Rac1 {[%clk 0:01:35.2]} 17... Rfd8 {[%clk
0:01:20.1]} 18. h3 {[%clk 0:01:21.1]} 18... h6 {[%clk 0:01:19.8]} 19. Rxd8+
{[%clk 0:01:09.9]} 19... Rxd8 {[%clk 0:01:19.4]} 20. Nb5 {[%clk 0:01:05.7]}
20... Qb7 {[%clk 0:01:12.3]} 21. Nxa7 {[%clk 0:01:03.8]} 21... c5 {[%clk
0:01:09]} 22. b4 {[%clk 0:00:17.8]} 22... Qxa7 {[%clk 0:01:05]} 23. bxc5 {[%clk
0:00:18.1]} 23... Qxa2 {[%clk 0:01:00]} 24. c6 {[%clk 0:00:17.3]} 24... Rc8
{[%clk 0:00:53.6]} 25. c7 {[%clk 0:00:17]} 25... Qa6 {[%clk 0:00:40.9]} 26. Qd4
{[%clk 0:00:15.4]} 26... Qb5 {[%clk 0:00:27.6]} 27. g4 {[%clk 0:00:08.6]} 27...
Bg6 {[%clk 0:00:24.5]} 28. Qb6 {[%clk 0:00:06.9]} 28... Qxb6 {[%clk 0:00:19.3]}
29. Bxb6 {[%clk 0:00:06.5]} 29... Kf8 {[%clk 0:00:19]} 30. Ba5 {[%clk 0:00:05]}
30... Ke8 {[%clk 0:00:18.4]} 31. Rd1 {[%clk 0:00:02.7]} 31... Be4 {[%clk
0:00:16.6]} 32. Kh2 {[%clk 0:00:01.9]} 32... Bd5 {[%clk 0:00:16.6]} 33. Kg3
{[%clk 0:00:01.1]} 33... Kd7 {[%clk 0:00:16.6]} 34. f4 {[%clk 0:00:01.5]} 34...
Bc5 {[%clk 0:00:10.9]} 0-1